fUST/lending_fUST_20240121
["ID","MTS","AMOUNT","RATE_DAILY","PERIOD"]
[312352242,1705815047799,-500.0,0.0003041,2]
[312352243,1705815047810,-220.0,0.0003041,2]
[312352244,1705815047819,-500.0,0.0003041,2]
[312352245,1705815047829,-500.0,0.0003041,2]
[312352246,1705815047838,-500.0,0.0003041,2]
[312352247,1705815047848,-500.0,0.0003041,2]
[312352248,1705815047857,-726.01,0.0003041,2]
[312352249,1705815047866,-500.0,0.0003041,2]
[312352250,1705815047875,-213.70869467,0.0003041,2]
[312352251,1705815047884,-550.59287802,0.0003041,2]
[312352252,1705815047893,-335.16007594,0.0003041,2]
[312352253,1705815047902,-535.61395288,0.0003041,2]
[312352254,1705815047911,-500.0,0.0003041,2]
[312352255,1705815047920,-500.0,0.0003041,2]
[312352256,1705815047929,-500.0,0.0003041,2]
[312352257,1705815047939,-500.0,0.0003041,2]
[312352258,1705815047948,-501.90194518,0.0003041,2]
[312352259,1705815047957,-500.0,0.0003041,2]
[312352260,1705815047968,-596.0958297,0.0003041,2]
[312352261,1705815047977,-500.0,0.0003041,2]
[312352262,1705815047986,-1424.3,0.0003041,2]
[312352263,1705815047995,-500.29208664,0.0003041,2]
[312352264,1705815048005,-512.38150394,0.0003041,2]
[312352265,1705815048014,-500.0,0.0003041,2]
[312352266,1705815048023,-502.39311687,0.0003041,2]
[312352267,1705815048033,-765.45,0.0003041,2]
[312352268,1705815048042,-500.82235622,0.0003041,2]
[312352269,1705815048052,-500.0,0.0003041,2]
[312352270,1705815048061,-369.00985851,0.0003041,2]
[312352271,1705815048072,-502.23380489,0.0003041,2]
[312352272,1705815048081,-500.0,0.0003041,2]
[312352273,1705815048091,-500.0,0.0003041,2]
[312352274,1705815048101,-503.30193575,0.0003041,2]
[312352275,1705815048111,-500.0,0.0003041,2]
[312352276,1705815048121,-500.0,0.0003041,2]
[312352277,1705815048131,-500.0,0.0003041,2]
[312352278,1705815048141,-500.0,0.0003041,2]
[312352279,1705815048151,-505.49870955,0.0003041,2]
[312352280,1705815048161,-1278.97,0.0003041,2]
[312352281,1705815048170,-1530.9,0.0003041,2]
[312352282,1705815048179,-501.49602513,0.0003041,2]
[312352283,1705815048189,-500.0,0.0003041,2]
[312352284,1705815048305,-500.96958819,0.0003041,2]
[312352285,1705815048315,-500.0,0.0003041,2]
[312352286,1705815048328,-198.27753364,0.0003041,2]
[312352287,1705815048339,-500.17407216,0.0003041,2]
[312352288,1705815048349,-500.0,0.0003041,2]
[312352289,1705815048358,-500.0,0.0003041,2]
[312352290,1705815048370,-500.0,0.0003041,2]
[312352291,1705815048381,-2149.29,0.0003041,2]
[312352292,1705815048392,-500.0,0.0003041,2]
[312352293,1705815048402,-885.38,0.0003041,2]
[312352294,1705815048412,-500.0,0.0003041,2]
[312352295,1705815048425,-500.0,0.0003041,2]
[312352296,1705815048436,-500.0,0.0003041,2]
[312352297,1705815048446,-500.0,0.0003041,2]
[312352298,1705815048456,-500.0,0.0003041,2]
[312352299,1705815048467,-500.0,0.0003041,2]
[312352300,1705815048478,-502.52181998,0.0003041,2]
[312352301,1705815048488,-500.0,0.0003041,2]
[312352302,1705815048498,-500.90581918,0.0003041,2]
[312352303,1705815048508,-163.9763583,0.0003041,2]
[312352304,1705815048517,-500.0,0.0003041,2]
[312352305,1705815048526,-500.0,0.0003041,2]
[312352306,1705815048535,-500.0,0.0003041,2]
[312352307,1705815048544,-1347.66,0.0003041,2]
[312352308,1705815048554,-500.0,0.0003041,2]
[312352309,1705815048563,-27884.47,0.0003041,2]
[312352310,1705815048573,-500.0,0.0003041,2]
[312352311,1705815048583,-502.39019566,0.0003041,2]
[312352312,1705815048593,-593.64,0.0003041,2]
[312352313,1705815048602,-611.2104419,0.0003041,2]
[312352314,1705815048611,-237.04279308,0.0003041,2]
[312352315,1705815048620,-500.0,0.0003041,2]
[312352316,1705815048630,-500.0,0.0003041,2]
[312352317,1705815048639,-9623.11,0.0003041,2]
[312352318,1705815048648,-500.0,0.0003041,2]
[312352319,1705815048657,-4872.39,0.0003041,2]
[312352320,1705815048666,-508.70316251,0.0003041,2]
[312352321,1705815048676,-500.0,0.0003041,2]
[312352322,1705815048685,-204.32141091,0.0003041,2]
[312352323,1705815048695,-500.0,0.0003041,2]
[312352324,1705815048704,-1268.28,0.0003041,2]
[312352325,1705815048713,-500.74589736,0.0003041,2]
[312352326,1705815048722,-500.0,0.0003041,2]
[312352327,1705815048731,-500.0,0.0003041,2]
[312352328,1705815048740,-3282.85,0.0003041,2]
[312352329,1705815048749,-500.0,0.0003041,2]
[312352330,1705815048759,-500.0,0.0003041,2]
[312352331,1705815048768,-500.0,0.0003041,2]
[312352332,1705815048778,-1075.83,0.0003041,2]
[312352333,1705815048787,-506.82,0.0003041,2]
[312352334,1705815048799,-2407.24,0.0003041,2]
[312352335,1705815048808,-500.0,0.0003041,2]
[312352336,1705815048818,-500.0,0.0003041,2]
[312352337,1705815048827,-500.0,0.0003041,2]
[312352338,1705815048837,-500.0,0.0003041,2]
[312352339,1705815048846,-500.0,0.0003041,2]
[312352340,1705815048856,-500.0,0.0003041,2]
[312352341,1705815048866,-500.0,0.0003041,2]
[312352342,1705815048875,-6246.55,0.0003041,2]
[312352343,1705815048884,-500.0,0.0003041,2]
[312352344,1705815048893,-1357.4,0.0003041,2]
[312352345,1705815048902,-500.0,0.0003041,2]
[312352346,1705815048911,-500.0,0.0003041,2]
[312352347,1705815048921,-500.0,0.0003041,2]
[312352348,1705815048930,-8645.91,0.0003041,2]
[312352349,1705815048939,-500.0,0.0003041,2]
[312352350,1705815048949,-500.0,0.0003041,2]
[312352351,1705815048958,-500.0,0.0003041,2]
[312352352,1705815048967,-217.58022648,0.0003041,2]
[312352353,1705815048977,-500.0,0.0003041,2]
[312352354,1705815048986,-504.10624072,0.0003041,2]
[312352355,1705815048995,-415.03975167,0.0003041,2]
[312352356,1705815049005,-500.0,0.0003041,2]
[312352357,1705815049014,-500.0,0.0003041,2]
[312352358,1705815049024,-1553.63,0.0003041,2]
[312352359,1705815049033,-8991.16,0.0003041,2]
[312352360,1705815049042,-500.0,0.0003041,2]
[312352361,1705815049052,-500.0,0.0003041,2]
[312352362,1705815049061,-500.76303151,0.0003041,2]
[312352363,1705815049070,-1272.1,0.0003041,2]
[312352364,1705815049080,-562.18289827,0.0003041,2]
[312352365,1705815049089,-500.0,0.0003041,2]
[312352366,1705815049099,-500.0,0.0003041,2]
[312352367,1705815049108,-502.32093715,0.0003041,2]
[312352368,1705815049118,-500.0,0.0003041,2]
[312352369,1705815049128,-500.0,0.0003041,2]
[312352370,1705815049137,-1099.43,0.0003041,2]
[312352371,1705815049147,-500.0,0.0003041,2]
[312352372,1705815049156,-2208.26,0.0003041,2]
[312352373,1705815049166,-15825.79,0.0003041,2]
[312352374,1705815049175,-298.60857659,0.0003041,2]
[312352375,1705815049184,-511.52,0.0003041,2]
[312352376,1705815049194,-500.0,0.0003041,2]
[312352377,1705815049203,-1166.53,0.0003041,2]
[312352378,1705815049212,-500.0,0.0003041,2]
[312352379,1705815049222,-500.0,0.0003041,2]
[312352380,1705815049231,-1000.0,0.0003041,2]
[312352381,1705815049240,-500.0,0.0003041,2]
[312352382,1705815049250,-1854.73,0.0003041,2]
[312352383,1705815049259,-500.0,0.0003041,2]
[312352384,1705815049268,-502.4,0.0003041,2]
[312352385,1705815049278,-500.0,0.0003041,2]
[312352386,1705815049287,-867.75,0.0003041,2]
[312352387,1705815049296,-500.0,0.0003041,2]
[312352388,1705815049305,-500.0,0.0003041,2]
[312352389,1705815049315,-500.0,0.0003041,2]
[312352390,1705815049325,-500.0,0.0003041,2]
[312352391,1705815049337,-500.0,0.0003041,2]
[312352392,1705815049346,-500.0,0.0003041,2]
[312352393,1705815049355,-500.0,0.0003041,2]
[312352394,1705815049364,-706.41,0.0003041,2]
[312352395,1705815049374,-500.0,0.0003041,2]
[312352396,1705815049382,-500.0,0.0003041,2]
[312352397,1705815049392,-1364.99,0.0003041,2]
[312352398,1705815049401,-500.0,0.0003041,2]
[312352399,1705815049411,-500.0,0.0003041,2]
[312352400,1705815049421,-2594.5,0.0003041,2]
[312352401,1705815049431,-500.0,0.0003041,2]
[312352402,1705815049440,-500.0,0.0003041,2]
[312352403,1705815049450,-84.87948802,0.0003041,2]
[312352404,1705815049588,-788.09051198,0.0003041,2]
[312352405,1705815049598,-500.59997525,0.0003041,2]
[312352406,1705815049608,-801.6,0.0003041,2]
[312352407,1705815049618,-500.0,0.0003041,2]
[312352408,1705815049627,-284.66218362,0.0003041,2]
[312352409,1705815049637,-543.92,0.0003041,2]
[312352410,1705815049647,-732.72,0.0003041,2]
[312352411,1705815049656,-500.0,0.0003041,2]
[312352412,1705815049665,-501.2,0.0003041,2]
[312352413,1705815049674,-615.78,0.0003041,2]
[312352414,1705815049683,-232.13832119,0.0003041,2]
[312352415,1705815049692,-952.96,0.0003041,2]
[312352416,1705815049701,-1691.99,0.0003041,2]
[312352417,1705815049710,-500.0,0.0003041,2]
[312352418,1705815049719,-1000.0,0.0003041,2]
[312352419,1705815049729,-848.44,0.0003041,2]
[312352420,1705815049738,-500.0,0.0003041,2]
[312352421,1705815049747,-844.08,0.0003041,2]
[312352422,1705815049757,-500.0,0.0003041,2]
[312352423,1705815049767,-686.45,0.0003041,2]
[312352424,1705815049776,-500.0,0.0003041,2]
[312352425,1705815049785,-500.0,0.0003041,2]
[312352426,1705815049794,-500.0,0.0003041,2]
[312352427,1705815049804,-1000.0,0.0003041,2]
[312352428,1705815049814,-500.0,0.0003041,2]
[312352429,1705815049823,-500.0,0.0003041,2]
[312352430,1705815049833,-500.0,0.0003041,2]
[312352431,1705815049843,-713.67,0.0003041,2]
[312352432,1705815049853,-500.0,0.0003041,2]
[312352433,1705815049864,-500.0,0.0003041,2]
[312352434,1705815049875,-500.0,0.0003041,2]
[312352435,1705815049885,-500.0,0.0003041,2]
[312352436,1705815049895,-500.0,0.0003041,2]
[312352437,1705815049903,-500.0,0.0003041,2]
[312352438,1705815049913,-500.0,0.0003041,2]
[312352439,1705815049922,-500.0,0.0003041,2]
[312352440,1705815049933,-500.0,0.0003041,2]
[312352441,1705815049942,-1080.67,0.0003041,2]
[312352442,1705815049951,-574.71,0.0003041,2]
[312352443,1705815049960,-151.44619477,0.0003041,2]
[312352444,1705815049970,-2235.54,0.0003041,2]
[312352445,1705815049979,-500.0,0.0003041,2]
[312352446,1705815049990,-500.0,0.0003041,2]
[312352447,1705815049999,-151.0,0.0003041,2]
[312352448,1705815050008,-279.177023,0.0003041,2]
[312352449,1705815050017,-245.861059,0.0003041,2]
[312352450,1705815050027,-245.861059,0.0003041,2]
[312352451,1705815050036,-151.0,0.0003041,2]
[312352452,1705815050045,-151.0,0.0003041,2]
[312352453,1705815050054,-151.0,0.0003041,2]
[312352454,1705815050064,-151.0,0.0003041,2]
[312352455,1705815050074,-5650.997992,0.0003041,2]
[312352456,1705815050083,-3697.05356707,0.0003041,2]
[312352457,1705815050182,-246.1618135,0.00027999,2]
[312352458,1705815050192,-276.42644312,0.00030126,3]
[312352459,1705815050335,-181.87355688,0.00030126,3]
[312352460,1705815050344,-500.0,0.0003041,2]
[312352461,1705815050354,-245.90863017,0.0003041,2]
[312352462,1705815050581,-481.4707376,0.0003041,2]
[312352463,1705815050593,-1226.56505716,0.0003041,2]
[312352464,1705815050602,-5650.997992,0.0003041,2]
[312352465,1705815050611,-2309.31535558,0.0003041,2]
[312352466,1705815050632,-1150.17648185,0.0003041,2]
[312352482,1705815990091,-313.36512089,0.00022601,2]
[312352485,1705816035081,-1158.00350614,0.00022601,2]
[312352486,1705816035102,-154.73694719,0.00027121,4]
[312352487,1705816035122,-150.0,0.0002831,2]
[312352488,1705816035144,-718.96652383,0.00028766,2]
[312352489,1705816049078,-1092.45118102,0.00028766,2]
[312352490,1705816049099,-168.7249345,0.00028767,2]
[312352491,1705816049119,-154.73694719,0.0003,2]
[312352492,1705816049140,-9123.45628356,0.0003,2]
[312352514,1705816232403,-154.70605849,0.00027121,4]
[312352515,1705816232412,-198.1063327,0.00028835,2]
[312352516,1705816232421,-1197.61620086,0.00029125,2]
[312352525,1705816238538,-613.80150399,0.00029125,2]
[312352526,1705816238548,-857.56712304,0.00029126,2]
[312352527,1705816238646,-7131.44480686,0.00029126,2]
[312352528,1705816238656,-391920.0012151,0.0003,2]
[312352529,1705816238668,-98898.83736434,0.0003,2]
[312352530,1705816238677,-170.69750452,0.0003,2]
[312352531,1705816238686,-177.04953276,0.00030036,2]
[312352532,1705816238695,-1550.42859205,0.00030104,4]
[312352533,1705816238704,-538.02736511,0.0003012,2]
[312352534,1705816238713,-376.04,0.00030126,3]
[312352535,1705816238722,-649.8,0.00030126,3]
[312352536,1705816238731,-243.87038791,0.00030134,4]
[312352537,1705816238744,-5228.2880579,0.00030134,4]
[312352538,1705816238753,-156.79527344,0.00030134,4]
[312352539,1705816238762,-350.69063474,0.00030134,4]
[312352540,1705816238771,-179.45377673,0.00030134,4]
[312352541,1705816238780,-591.34984357,0.00030134,4]
[312352542,1705816238790,-157.1945398,0.00030134,4]
[312352543,1705816238799,-425.87753299,0.00030134,2]
[312352544,1705816238808,-237.57908484,0.00030134,4]
[312352545,1705816238817,-252.26269482,0.00030134,4]
[312352546,1705816238827,-470.52459336,0.00030134,2]
[312352547,1705816238836,-225.40245301,0.00030134,4]
[312352548,1705816238845,-155.13128101,0.00030134,4]
[312352549,1705816238855,-155.74648817,0.00030134,4]
[312352550,1705816238865,-555.24243185,0.00030134,4]
[312352551,1705816238874,-155.37825831,0.00030134,2]
[312352552,1705816238883,-155.29227458,0.00030134,2]
[312352553,1705816238891,-742.19377108,0.00030134,4]
[312352554,1705816238900,-155.20830859,0.00030134,4]
[312352555,1705816238911,-874.18725797,0.00030134,4]
[312352556,1705816238921,-155.27397355,0.00030135,4]
[312352557,1705816238930,-630.75243678,0.00030135,4]
[312352558,1705816238939,-1110.50804311,0.00030135,4]
[312352559,1705816238948,-1000.0,0.00030135,14]
[312352560,1705816238957,-1000.0,0.00030135,14]
[312352561,1705816238967,-312.19320371,0.00030135,14]
[312352562,1705816238976,-1000.0,0.00030135,3]
[312352563,1705816238986,-194.89,0.00030135,2]
[312352564,1705816238995,-195.88,0.00030135,2]
[312352565,1705816239004,-195.88,0.00030135,2]
[312352566,1705816239013,-195.88,0.00030135,2]
[312352567,1705816239023,-195.88,0.00030135,2]
[312352568,1705816239031,-195.88,0.00030135,2]
[312352569,1705816239041,-195.88,0.00030135,2]
[312352570,1705816239050,-195.88,0.00030135,2]
[312352571,1705816239058,-195.88,0.00030135,2]
[312352572,1705816239068,-500.0,0.00030136,2]
[312352573,1705816239078,-500.0,0.00030136,2]
[312352574,1705816239087,-500.0,0.00030136,2]
[312352575,1705816239097,-307.6683179,0.00030136,4]
[312352576,1705816239106,-500.0,0.00030136,2]
[312352577,1705816239115,-500.0,0.00030136,2]
[312352578,1705816239124,-600.42402773,0.00030136,2]
[312352579,1705816239133,-500.0,0.00030136,2]
[312352580,1705816239143,-471.89647136,0.00030136,2]
[312352581,1705816239152,-500.0,0.00030136,2]
[312352582,1705816239162,-500.0,0.00030136,2]
[312352583,1705816239171,-500.0,0.00030136,2]
[312352584,1705816239180,-500.0,0.00030136,2]
[312352585,1705816239190,-503.06309626,0.00030136,2]
[312352586,1705816239200,-500.0,0.00030136,2]
[312352587,1705816239209,-500.0,0.00030136,2]
[312352588,1705816239219,-505.15812508,0.00030136,2]
[312352589,1705816239228,-501.44958437,0.00030136,2]
[312352590,1705816239237,-500.0,0.00030136,2]
[312352591,1705816239247,-600.0726011,0.00030136,2]
[312352592,1705816239256,-508.32,0.00030136,2]
[312352593,1705816239266,-500.0,0.00030136,2]
[312352594,1705816239276,-500.0,0.00030136,2]
[312352595,1705816239285,-501.56476935,0.00030136,2]
[312352596,1705816239294,-500.0,0.00030136,2]
[312352597,1705816239303,-500.0,0.00030136,2]
[312352598,1705816239312,-500.0,0.00030136,2]
[312352599,1705816239321,-500.0,0.00030136,2]
[312352600,1705816239330,-150.0,0.00030136,2]
[312352601,1705816239339,-500.0,0.00030136,2]
[312352602,1705816239348,-673.27,0.00030136,2]
[312352603,1705816239357,-500.0,0.00030136,2]
[312352604,1705816239367,-504.36863832,0.00030136,2]
[312352605,1705816239376,-386.07321651,0.00030136,2]
[312352606,1705816239385,-500.0,0.00030136,2]
[312352607,1705816239395,-1000.0,0.00030136,2]
[312352608,1705816239405,-504.03597928,0.00030136,2]
[312352609,1705816239415,-500.0,0.00030136,2]
[312352610,1705816239424,-533.7492348,0.00030136,2]
[312352611,1705816239434,-500.32661163,0.00030136,2]
[312352612,1705816239443,-500.0,0.00030136,2]
[312352613,1705816239453,-500.0,0.00030136,2]
[312352614,1705816239462,-500.0,0.00030136,2]
[312352615,1705816239471,-500.0,0.00030136,2]
[312352616,1705816239480,-708.63,0.00030136,2]
[312352617,1705816239490,-500.90581918,0.00030136,2]
[312352618,1705816239499,-500.0,0.00030136,2]
[312352619,1705816239509,-500.44787412,0.00030136,2]
[312352620,1705816239518,-500.13735604,0.00030136,2]
[312352621,1705816239527,-500.0,0.00030136,2]
[312352622,1705816239536,-500.0,0.00030136,2]
[312352623,1705816239546,-500.0,0.00030136,2]
[312352624,1705816239555,-500.74589736,0.00030136,2]
[312352625,1705816239565,-568.49,0.00030136,2]
[312352626,1705816239574,-500.0,0.00030136,2]
[312352627,1705816239583,-500.0,0.00030136,2]
[312352628,1705816239593,-500.0,0.00030136,2]
[312352629,1705816239602,-500.0,0.00030136,2]
[312352630,1705816239612,-2306.94,0.00030136,2]
[312352631,1705816239621,-500.0,0.00030136,7]
[312352632,1705816239630,-500.42835523,0.00030136,2]
[312352633,1705816239640,-500.0,0.00030136,2]
[312352634,1705816239649,-500.0,0.00030136,2]
[312352635,1705816239658,-500.0,0.00030136,2]
[312352636,1705816239668,-500.0,0.00030136,2]
[312352637,1705816239677,-500.0,0.00030136,2]
[312352638,1705816239686,-500.0,0.00030136,2]
[312352639,1705816239695,-724.54,0.00030136,2]
[312352640,1705816239705,-500.0,0.00030136,2]
[312352641,1705816239714,-500.0,0.00030136,2]
[312352642,1705816239726,-500.0,0.00030136,2]
[312352643,1705816239739,-500.0,0.00030136,2]
[312352644,1705816239749,-500.0,0.00030136,2]
[312352645,1705816239758,-533.55959299,0.00030136,2]
[312352646,1705816239767,-500.0,0.00030136,2]
[312352647,1705816239778,-1000.0,0.00030136,2]
[312352648,1705816239787,-500.0,0.00030136,2]
[312352649,1705816239796,-300.67494007,0.00030136,2]
[312352650,1705816239805,-168.30069407,0.00030136,2]
[312352651,1705816239816,-867.75,0.00030136,2]
[312352652,1705816239825,-500.0,0.00030136,2]
[312352653,1705816239834,-500.0,0.00030136,2]
[312352654,1705816239843,-500.38009396,0.00030136,2]
[312352655,1705816239853,-500.0,0.00030136,2]
[312352656,1705816239862,-502.66377343,0.00030136,2]
[312352657,1705816239871,-500.67327794,0.00030136,2]
[312352658,1705816239881,-500.0,0.00030136,2]
[312352659,1705816239892,-307.26826808,0.00030136,2]
[312352660,1705816239902,-500.0,0.00030136,2]
[312352661,1705816239911,-500.0,0.00030136,2]
[312352662,1705816239921,-500.0,0.00030136,2]
[312352663,1705816239932,-500.0,0.00030136,2]
[312352664,1705816239942,-521.26,0.00030136,2]
[312352665,1705816239952,-706.41,0.00030136,2]
[312352666,1705816239961,-500.0,0.00030136,2]
[312352667,1705816239970,-1024.7,0.00030136,2]
[312352668,1705816239979,-430.23740903,0.00030136,2]
[312352669,1705816239989,-500.0,0.00030136,2]
[312352670,1705816239998,-500.0,0.00030136,2]
[312352671,1705816240007,-550.59287802,0.00030136,2]
[312352672,1705816240016,-220.0,0.00030136,2]
[312352673,1705816240026,-1000.0,0.00030136,2]
[312352674,1705816240035,-500.0,0.00030136,2]
[312352675,1705816240045,-500.0,0.00030136,2]
[312352676,1705816240054,-213.70869467,0.00030136,2]
[312352677,1705816240064,-535.61395288,0.00030136,2]
[312352678,1705816240073,-500.0,0.00030136,2]
[312352679,1705816240083,-695.76,0.00030136,2]
[312352680,1705816240092,-500.0,0.00030136,2]
[312352681,1705816240101,-500.0,0.00030136,2]
[312352682,1705816240111,-197.51931801,0.00030136,2]
[312352683,1705816240120,-596.0958297,0.00030136,2]
[312352684,1705816240129,-691.06,0.00030136,2]
[312352685,1705816240138,-502.39311687,0.00030136,2]
[312352686,1705816240148,-505.49870955,0.00030136,2]
[312352687,1705816240158,-500.0,0.00030136,2]
[312352688,1705816240166,-500.0,0.00030136,2]
[312352689,1705816240175,-500.0,0.00030136,2]
[312352690,1705816240185,-512.38150394,0.00030136,2]
[312352691,1705816240194,-500.0,0.00030136,2]
[312352692,1705816240203,-501.90194518,0.00030136,2]
[312352693,1705816240213,-500.0,0.00030136,2]
[312352694,1705816240223,-500.0,0.00030136,2]
[312352695,1705816240232,-10018.48398771,0.00030136,10]
[312352696,1705816240241,-500.0,0.00030136,2]
[312352697,1705816240374,-503.30193575,0.00030136,2]
[312352698,1705816240384,-500.0,0.00030136,2]
[312352699,1705816240394,-500.0,0.00030136,2]
[312352700,1705816240404,-500.0,0.00030136,2]
[312352701,1705816240413,-501.09123167,0.00030136,2]
[312352702,1705816240423,-369.00985851,0.00030136,2]
[312352703,1705816240432,-500.0,0.00030136,2]
[312352704,1705816240442,-500.0,0.00030136,2]
[312352705,1705816240451,-345.13162571,0.00030136,2]
[312352706,1705816240461,-500.0,0.00030136,2]
[312352707,1705816240470,-511.20407066,0.00030136,2]
[312352708,1705816240479,-163.9763583,0.00030136,2]
[312352709,1705816240489,-500.72302564,0.00030136,2]
[312352710,1705816240498,-1096.68,0.00030136,2]
[312352711,1705816240507,-500.0,0.00030136,2]
[312352712,1705816240516,-1225.68,0.00030136,2]
[312352713,1705816240527,-746.35,0.00030136,2]
[312352714,1705816240536,-746.35,0.00030136,2]
[312352715,1705816240545,-746.35,0.00030136,2]
[312352716,1705816240554,-746.35,0.00030136,2]
[312352717,1705816240564,-746.35,0.00030136,2]
[312352718,1705816240573,-746.35,0.00030136,2]
[312352719,1705816240582,-746.35,0.00030136,2]
[312352720,1705816240591,-746.35,0.00030136,2]
[312352721,1705816240600,-746.35,0.00030136,2]
[312352722,1705816240609,-746.35,0.00030136,2]
[312352723,1705816240618,-500.0,0.00030136,2]
[312352724,1705816240627,-198.27753364,0.00030136,2]
[312352725,1705816240636,-500.0,0.00030136,2]
[312352726,1705816240645,-500.0,0.00030136,2]
[312352727,1705816240656,-575.98690108,0.00030136,2]
[312352728,1705816240665,-500.0,0.00030136,2]
[312352729,1705816240674,-500.0,0.00030136,2]
[312352730,1705816240683,-379.75033587,0.00030136,2]
[312352731,1705816240692,-500.0,0.00030136,2]
[312352732,1705816240702,-500.0,0.00030136,2]
[312352733,1705816240711,-500.0,0.00030136,2]
[312352734,1705816240720,-514.87567148,0.00030136,2]
[312352735,1705816240730,-500.0,0.00030136,2]
[312352736,1705816240741,-500.9344997,0.00030136,2]
[312352737,1705816240751,-500.0,0.00030136,2]
[312352738,1705816240760,-2181.24,0.00030136,2]
[312352739,1705816240769,-500.0,0.00030136,2]
[312352740,1705816240779,-500.0,0.00030136,2]
[312352741,1705816240788,-624.78198421,0.00030136,2]
[312352742,1705816240796,-1000.0,0.00030136,2]
[312352743,1705816240805,-500.0,0.00030136,2]
[312352744,1705816240815,-500.0,0.00030136,2]
[312352745,1705816240824,-539.51631293,0.00030136,2]
[312352746,1705816240833,-500.0,0.00030136,2]
[312352747,1705816240842,-510.55232706,0.00030136,2]
[312352748,1705816240851,-500.0,0.00030136,2]
[312352749,1705816240860,-500.0,0.00030136,2]
[312352750,1705816240869,-2966.89,0.00030136,2]
[312352751,1705816240878,-500.0,0.00030136,2]
[312352752,1705816240886,-508.70316251,0.00030136,2]
[312352753,1705816240895,-500.19381526,0.00030136,2]
[312352754,1705816240904,-500.0,0.00030136,2]
[312352755,1705816240914,-1053.62,0.00030136,2]
[312352756,1705816240923,-500.0,0.00030136,2]
[312352757,1705816240932,-500.0,0.00030136,2]
[312352758,1705816240941,-1075.83,0.00030136,2]
[312352759,1705816240950,-501.32256975,0.00030136,2]
[312352760,1705816240958,-500.0,0.00030136,2]
[312352761,1705816240967,-298.05207015,0.00030136,2]
[312352762,1705816240976,-500.0,0.00030136,2]
[312352763,1705816240985,-409.5588968,0.00030136,2]
[312352764,1705816240994,-562.18289827,0.00030136,2]
[312352765,1705816241003,-500.0,0.00030136,2]
[312352766,1705816241012,-500.0,0.00030136,2]
[312352767,1705816241021,-521.65662967,0.00030136,2]
[312352768,1705816241031,-500.0,0.00030136,2]
[312352769,1705816241040,-500.0,0.00030136,2]
[312352770,1705816241049,-298.60857659,0.00030136,2]
[312352771,1705816241059,-500.0,0.00030136,2]
[312352772,1705816241068,-500.0,0.00030136,2]
[312352773,1705816241078,-506.57330405,0.00030136,2]
[312352774,1705816241087,-500.0,0.00030136,2]
[312352775,1705816241096,-666.35,0.00030136,2]
[312352776,1705816241105,-500.0,0.00030136,2]
[312352777,1705816241115,-637.23312708,0.00030136,2]
[312352778,1705816241125,-611.2104419,0.00030136,2]
[312352779,1705816241134,-464.02860065,0.00030136,2]
[312352780,1705816241144,-1166.53,0.00030136,2]
[312352781,1705816241154,-500.0,0.00030136,2]
[312352782,1705816241165,-204.32141091,0.00030136,2]
[312352783,1705816241175,-500.0,0.00030136,2]
[312352784,1705816241184,-598.57591787,0.00030136,2]
[312352785,1705816241195,-500.0,0.00030136,2]
[312352786,1705816241206,-602.55421937,0.00030136,2]
[312352787,1705816241215,-500.0,0.00030136,2]